bitfinex/quotes_SOLUSD_20251024
["timestamp","ask_amount","ask_price","bid_price","bid_amount"]
[1761296149858,0.7,193.1,193.08,7.75348468]
[1761296151055,0.7,193.1,193.08,5.17920033]
[1761296152677,36.58,193.1,193.08,5.17920033]
[1761296153176,0.7,193.09,193.07,5.17946858]
[1761296153759,36.58,193.09,193.07,5.17946858]
[1761296153962,0.7,193.09,193.06,5.17969369]
[1761296154171,39.15428435,193.08,193.03,2.57428435]
[1761296154356,0.7,193.07,193.03,5.18054188]
[1761296154780,36.58,193.07,193.03,5.18054188]
[1761296155159,0.7,193.06,193.03,5.18054188]
[1761296155457,36.58,193.06,193.03,5.18054188]
[1761296155654,0.7,193.05,193.03,5.18054188]
[1761296160272,0.7,193.05,193.03,7.75482623]
[1761296160876,0.7,193.05,193.03,5.18054188]
[1761296161270,0.7,193.05,193.03,7.75482623]
[1761296161474,2.57428435,193.04,193.0,5.38133698]
[1761296161682,2.57428435,193.03,193.0,0.2]
[1761296161992,35.88,193.02,193.0,5.38134139]
[1761296162189,35.88,193.01,193.0,0.2]
[1761296162396,0.7,193.01,193.0,0.2]
[1761296162578,36.58,193.01,193.0,0.2]
[1761296163091,36.58,193.01,193.0,5.38134715]
[1761296165694,0.7,193.01,193.0,5.38134715]
[1761296166167,36.58,193.01,193.0,5.38134715]
[1761296168369,0.7,193.01,193.0,5.38134715]
[1761296168565,36.58,193.01,193.0,5.38134715]
[1761296169607,0.7,193.01,193.0,5.38134715]
[1761296170083,39.15428435,193.01,193.0,0.2]
[1761296170775,3.27428435,193.01,193.0,0.2]
[1761296171074,39.15428435,193.01,193.0,0.2]
[1761296172275,3.27428435,193.01,193.0,0.2]
[1761296172481,39.15428435,193.01,193.0,0.2]
[1761296174380,3.27428435,193.01,193.0,0.2]
[1761296174895,39.15428435,193.01,193.0,0.2]
[1761296175105,36.58,193.01,193.0,0.2]
[1761296175408,39.15428435,193.01,193.0,0.2]
[1761296175593,3.27428435,193.01,193.0,0.2]
[1761296176193,39.15428435,193.01,193.0,0.2]
[1761296176802,3.27428435,193.01,193.0,0.2]
[1761296177001,39.15428435,193.01,193.0,0.2]
[1761296177699,3.27428435,193.01,193.0,0.2]
[1761296178195,39.15428435,193.01,193.0,0.2]
[1761296180706,3.27428435,193.01,193.0,0.2]
[1761296180890,39.15428435,193.01,193.0,0.2]
[1761296185604,3.27428435,193.01,193.0,0.2]
[1761296185799,3.27428435,193.01,192.95,0.2]
[1761296185800,22.88,192.98,192.95,0.2]
[1761296185999,38.45428435,192.97,192.95,0.2]
[1761296186207,39.14428435,192.97,192.95,0.2]
[1761296186505,0.69,192.96,192.95,0.2]
[1761296186816,36.57,192.96,192.95,0.2]
[1761296188099,39.14428435,192.96,192.95,0.2]
[1761296189426,0.7,193.12,193.06,100.0]
[1761296189716,17.83507738,193.23,193.1,2.57428435]
[1761296189717,8.55428435,193.16,193.1,2.57428435]
[1761296189926,15.54283345,193.19,193.1,2.57428435]
[1761296190091,2.57428435,193.17,193.11,2.57428435]
[1761296190415,0.7,193.18,193.12,2.57428435]
[1761296190615,22.76,193.17,193.12,2.57428435]
[1761296190829,36.2,193.16,193.13,5.17785947]
[1761296190999,36.2,193.16,193.13,2.57428435]
[1761296191311,36.9,193.15,193.13,2.57428435]
[1761296192724,0.7,193.15,193.13,7.75211953]
[1761296193017,36.88,193.14,193.13,7.75211953]
[1761296193206,36.18,193.14,193.13,7.75211953]
[1761296193392,0.7,193.15,193.13,7.75211953]
[1761296193597,36.18,193.14,193.13,7.75211953]
[1761296194715,36.18,193.14,193.12,2.57428435]
[1761296195420,36.18,193.13,193.12,2.57428435]
[1761296195600,22.88,193.16,193.12,2.57428435]
[1761296195813,36.16,193.15,193.13,5.17785947]
[1761296196004,36.16,193.14,193.13,5.17785947]
[1761296197204,36.16,193.14,193.11,5.17820495]
[1761296197415,36.16,193.14,193.12,2.57428435]
[1761296197905,36.16,193.14,193.12,7.75220361]
[1761296198407,36.16,193.14,193.12,5.17791926]
[1761296199615,36.16,193.14,193.12,7.75220361]
[1761296200045,36.16,193.14,193.12,5.17791926]
[1761296200550,23.58,193.16,193.12,5.17791926]
[1761296200710,36.84,193.15,193.12,7.75220361]
[1761296201515,36.84,193.15,193.11,2.57428435]
[1761296202333,36.14,193.15,193.12,5.17812758]
[1761296202928,22.88,193.16,193.12,5.17812758]
[1761296203133,36.83,193.15,193.12,5.17812758]
[1761296204228,0.71,193.14,193.12,5.17812758]
[1761296204824,36.12,193.13,193.12,5.17812758]
[1761296205743,36.12,193.13,193.11,2.57428435]
[1761296205909,36.83,193.13,193.11,2.57428435]
[1761296206816,36.83,193.13,193.11,1.64676506]
[1761296208030,36.83,193.13,193.12,5.17812758]
[1761296208418,36.12,193.13,193.09,5.1789321]
[1761296208621,0.71,193.12,193.09,5.1789321]
[1761296209142,0.71,193.12,193.09,6.82569716]
[1761296209352,36.83,193.13,193.1,1.64676506]
[1761296209840,36.1,193.12,193.11,5.17839573]
[1761296211022,36.1,193.12,193.09,6.82569716]
[1761296212443,36.81,193.12,193.09,6.82569716]
[1761296212940,36.08,193.11,193.09,6.82569716]
[1761296213138,36.08,193.11,193.1,6.82542896]
[1761296213452,22.88,193.15,193.1,6.82542896]
[1761296213638,36.08,193.14,193.11,1.64676506]
[1761296213944,22.88,193.15,193.12,1.64676506]
[1761296214144,36.08,193.14,193.12,1.64676506]
[1761296214690,36.08,193.14,193.11,1.64676506]
[1761296214954,23.59,193.15,193.12,5.17812758]
[1761296214955,36.08,193.13,193.12,5.17812758]
[1761296216329,36.08,193.13,193.12,69.77021161]
[1761296216648,0.71,193.16,193.12,69.77021161]
[1761296216819,22.88,193.17,193.14,1.64676506]
[1761296217025,36.08,193.16,193.14,1.64676506]
[1761296217334,36.08,193.15,193.14,1.64676506]
[1761296217532,23.59,193.17,193.14,1.64676506]
[1761296217834,36.08,193.16,193.15,1.64676506]
[1761296218033,36.79,193.16,193.11,1.64676506]
[1761296218266,36.81,193.15,193.11,6.82514275]
[1761296218478,36.81,193.15,193.11,5.17837769]
[1761296218675,36.81,193.14,193.11,6.82514275]
[1761296218852,36.1,193.13,193.11,6.82514275]
[1761296219053,0.71,193.13,193.11,6.82514275]
[1761296219271,36.1,193.12,193.11,5.17837769]
[1761296219582,36.1,193.12,193.1,5.1786639]
[1761296220484,36.81,193.12,193.1,5.1786639]
[1761296220778,0.71,193.12,193.1,5.1786639]
[1761296220972,36.1,193.11,193.1,5.1786639]
[1761296221577,36.08,193.11,193.1,5.1786639]
[1761296222072,0.71,193.13,193.1,5.1786639]
[1761296222369,36.08,193.12,193.1,5.1786639]
[1761296222575,36.08,193.12,193.08,19.77396621]
[1761296222870,36.79,193.12,193.09,1.64676506]
[1761296223469,0.71,193.12,193.09,1.64676506]
[1761296223673,36.08,193.11,193.1,5.1786639]
[1761296223875,0.71,193.12,193.1,5.1786639]
[1761296224054,36.08,193.11,193.1,5.1786639]
[1761296224472,0.71,193.12,193.1,5.1786639]
[1761296224675,36.08,193.11,193.1,5.1786639]
[1761296225678,0.71,193.12,193.1,5.1786639]
[1761296225973,36.08,193.11,193.1,5.1786639]
[1761296226483,0.71,193.12,193.1,5.1786639]
[1761296226773,36.08,193.11,193.1,5.1786639]
[1761296227589,36.06,193.11,193.1,5.1786639]
[1761296227871,22.88,193.08,193.02,5.18081027]
[1761296228182,1.64676506,193.06,193.01,55.18107764]
[1761296228556,0.71,193.05,193.01,56.8278427]
[1761296228757,36.08,193.04,193.01,56.8278427]
[1761296228982,36.08,193.03,193.01,56.8278427]
[1761296229487,36.08,193.02,193.01,56.8278427]
[1761296229869,0.71,193.05,193.01,56.8278427]
[1761296230073,36.08,193.04,193.01,55.18107764]
[1761296230383,0.71,193.05,193.01,55.18107764]
[1761296230555,36.79,193.04,193.01,55.18107764]
[1761296231285,36.08,193.03,193.01,55.18107764]
[1761296231458,0.71,193.04,193.01,55.18107764]
[1761296231870,0.71,193.04,193.01,5.18107764]
[1761296232193,36.08,193.03,193.01,5.18107764]
[1761296232355,36.06,193.02,193.01,5.18107764]
[1761296232553,0.71,193.04,193.01,5.18107764]
[1761296232765,36.06,193.03,193.01,5.18107764]
[1761296232978,36.06,193.02,193.01,5.18107764]
[1761296235261,36.06,193.02,192.99,5.18136089]
[1761296235262,36.76,193.02,192.99,5.18136089]
[1761296235461,0.7,193.04,193.0,1.64676506]
[1761296235678,36.78,193.03,193.0,1.64676506]
[1761296235976,36.78,193.03,193.01,5.1810787]
[1761296235977,36.08,193.02,193.01,5.1810787]
[1761296236286,0.7,193.02,193.01,5.1810787]
[1761296236660,36.78,193.02,193.01,5.1810787]
[1761296237371,0.7,193.02,193.01,5.1810787]
[1761296237572,36.78,193.02,193.01,5.1810787]
[1761296238283,36.78,193.02,193.0,5.18134715]
[1761296238986,36.08,193.01,193.0,5.18134715]
[1761296240088,0.7,193.04,193.0,19.78148008]
[1761296240285,36.78,193.03,193.0,19.78148008]
[1761296240461,0.7,193.03,193.0,18.13471502]
[1761296240787,36.08,193.02,193.0,19.78148008]
[1761296241285,0.7,193.03,193.0,18.13471502]
[1761296241591,0.7,193.03,193.0,19.78148008]
[1761296241756,36.06,193.02,193.0,19.78148008]
[1761296242161,0.7,193.03,193.0,5.18134715]
[1761296242362,36.06,193.02,193.0,5.18134715]
[1761296242563,0.7,193.03,193.0,5.18134715]
[1761296242783,0.7,193.04,193.0,5.18134715]
[1761296243394,36.06,193.03,193.0,5.18134715]
[1761296243690,0.7,193.04,193.0,5.18134715]
[1761296243874,36.06,193.02,193.0,5.18134715]
[1761296244790,36.06,193.01,193.0,5.18134715]
[1761296245386,23.82220728,193.12,193.01,50.0]
[1761296245583,23.58,193.07,193.03,1.64676506]
[1761296245784,23.58,193.07,193.02,1.64676506]
[1761296245991,36.76,193.06,193.02,1.64676506]
[1761296246189,0.7,193.06,193.02,1.64676506]
[1761296246392,0.7,193.05,193.03,5.18054188]
[1761296246892,36.08,193.04,193.03,5.18054188]
[1761296247892,0.7,193.04,193.0,12.95336787]
[1761296248068,0.7,193.03,193.0,12.95336787]
[1761296248269,36.08,193.02,193.0,12.95336787]
[1761296248465,36.08,193.02,193.0,19.78148008]
[1761296248988,36.08,193.01,193.0,19.78148008]
[1761296250395,36.06,193.01,193.0,18.13471502]
[1761296250581,0.69,193.03,193.0,5.18134715]
[1761296250784,36.06,193.02,193.0,5.18134715]
[1761296250978,36.06,193.01,193.0,5.18134715]
[1761296251692,36.75,193.01,193.0,5.18134715]
[1761296252099,0.69,193.01,193.0,5.18134715]
[1761296252268,36.75,193.01,193.0,5.18134715]
[1761296253568,36.75,193.01,192.99,5.18161562]
[1761296254498,0.69,193.01,192.99,5.18161562]
[1761296254996,36.06,193.0,192.99,5.18161562]
[1761296255296,36.06,193.0,192.99,1.64676506]
[1761296255671,0.69,193.02,192.98,19.78331641]
[1761296255870,36.04,193.01,192.99,1.64676506]
[1761296256068,36.04,193.0,192.99,1.64676506]
[1761296256269,36.04,193.0,192.99,6.82838068]
[1761296257095,36.04,193.0,192.99,5.18161562]
[1761296257594,36.73,193.0,192.99,5.18161562]
[1761296257778,0.69,193.0,192.98,19.78331641]
[1761296257981,36.04,192.99,192.98,19.78331641]
[1761296258379,0.69,193.0,192.98,18.13655135]
[1761296258595,36.04,192.99,192.98,19.78331641]
[1761296258998,0.69,193.0,192.98,19.78331641]
[1761296259190,36.04,192.99,192.98,19.78331641]
[1761296262403,36.02,192.99,192.98,19.78331641]
[1761296262599,0.68,193.01,192.98,19.78331641]
[1761296262783,36.02,192.99,192.98,18.13655135]
[1761296262985,0.68,193.01,193.0,5.18134715]
[1761296263283,36.7,193.01,193.0,5.18134715]
[1761296263898,36.7,193.01,192.99,1.64676506]
[1761296264099,0.68,193.0,192.99,1.64676506]
[1761296264297,36.7,193.0,192.99,1.64676506]
[1761296265006,36.7,193.0,192.99,6.82838068]
[1761296265301,0.68,193.0,192.99,6.82838068]
[1761296265504,36.7,193.0,192.99,6.82838068]
[1761296266002,36.7,193.0,192.99,5.18161562]
[1761296266506,0.68,193.02,192.99,5.18161562]
[1761296267003,36.02,193.01,192.99,5.18161562]
[1761296267405,0.68,193.02,192.99,5.18161562]
[1761296267594,36.02,193.0,192.99,5.18161562]
[1761296268608,0.68,193.02,192.98,6.82860444]
[1761296268808,36.0,193.0,192.98,7.75820148]
[1761296268990,36.0,192.99,192.98,7.75820148]
[1761296269318,22.88,193.07,192.98,7.75820148]
[1761296269608,36.0,193.06,193.04,2.5763621]
[1761296269808,0.68,193.07,193.04,2.5763621]
[1761296270111,36.02,193.06,193.04,2.5763621]
[1761296270412,36.02,193.05,193.04,7.75649383]
[1761296270811,36.02,193.05,193.04,5.18013173]
[1761296270982,36.02,193.05,193.02,5.18054853]
[1761296271321,22.88,193.09,192.99,52.5763621]
[1761296271322,0.68,193.04,192.99,52.5763621]
[1761296271493,0.68,193.04,193.0,2.5763621]
[1761296271692,36.02,193.03,193.0,2.5763621]
[1761296271900,36.02,193.03,192.99,70.71201357]
[1761296272101,36.7,193.03,192.99,70.71201357]
[1761296272283,36.02,193.02,192.99,70.71201357]
[1761296272600,0.68,193.02,192.99,70.71201357]
[1761296272808,0.68,193.02,192.99,120.71201357]
[1761296272993,36.02,193.01,192.99,120.71201357]
[1761296273195,36.0,193.01,193.0,2.5763621]
[1761296275312,36.0,193.02,193.01,5.1810787]
[1761296275497,0.68,193.04,193.01,5.1810787]
[1761296275687,36.0,193.02,193.01,5.1810787]
[1761296276110,0.68,193.04,193.01,5.1810787]
[1761296276300,36.0,193.02,193.01,5.1810787]
[1761296276695,0.68,193.02,193.01,5.1810787]
[1761296277111,36.68,193.02,193.01,5.1810787]
[1761296278012,0.68,193.02,193.0,5.18134715]
[1761296278219,36.68,193.02,193.0,5.18134715]
[1761296278625,0.68,193.02,193.0,5.18134715]
[1761296278796,36.0,193.01,193.0,5.18134715]
[1761296280419,35.98,193.01,193.0,5.18134715]
[1761296280608,0.68,193.03,193.0,5.18134715]
[1761296280798,35.98,193.01,193.0,5.18134715]
[1761296281206,0.68,193.03,193.0,5.18134715]
[1761296281400,35.98,193.01,193.0,5.18134715]
[1761296284522,0.68,193.03,193.0,5.18134715]
[1761296285025,35.98,193.02,193.0,7.75770925]
[1761296285321,35.98,193.01,192.98,2.5763621]
[1761296285531,2.5763621,193.04,192.98,2.5763621]
[1761296285532,0.68,193.02,192.98,7.75824623]
[1761296285828,36.66,193.01,192.98,7.75824623]
[1761296286125,35.98,193.0,192.98,20.71295656]
[1761296286320,0.68,193.01,192.98,20.71295656]
[1761296286512,35.98,192.99,192.98,20.71295656]
[1761296287320,35.98,192.99,192.98,18.13659446]
[1761296289739,35.98,192.99,192.98,20.71295656]
[1761296291121,36.64,192.99,192.98,5.18188413]
[1761296291306,36.64,192.99,192.95,100.2]
[1761296291513,0.66,192.98,192.96,5.18236023]
[1761296291922,35.96,192.97,192.96,5.18236023]
[1761296292621,0.66,192.98,192.96,5.18236023]
[1761296292922,0.66,192.98,192.96,7.75872233]
[1761296293424,35.96,192.97,192.96,7.75872233]
[1761296294410,0.66,192.98,192.96,7.75872233]
[1761296294602,35.96,192.97,192.96,7.75872233]
[1761296295706,36.62,192.98,192.96,7.75872233]
[1761296296024,0.66,193.01,192.97,2.5763621]
[1761296296324,0.66,193.0,192.97,2.5763621]
[1761296296521,36.62,193.0,192.97,2.5763621]
[1761296296730,35.96,192.99,192.98,2.5763621]
[1761296297101,0.66,193.0,192.98,7.75824623]
[1761296297923,35.96,192.99,192.98,7.75824623]
[1761296298225,35.96,192.99,192.98,5.18188413]
[1761296298617,35.96,193.0,192.98,20.71295656]
[1761296298816,0.66,193.02,192.98,20.71295656]
[1761296299023,35.96,193.01,192.98,20.71295656]
[1761296299210,35.96,193.0,192.98,20.71295656]
[1761296299713,0.66,193.01,192.98,20.71295656]
[1761296300027,0.66,193.01,192.98,18.13659446]
[1761296300233,35.96,193.0,192.98,20.71295656]
[1761296300704,35.96,192.99,192.98,20.71295656]
[1761296301825,0.66,193.01,192.98,20.71295656]
[1761296302130,35.94,193.0,192.98,20.71295656]
[1761296302931,36.6,193.0,192.98,20.71295656]
[1761296304131,35.94,193.0,192.98,20.71295656]
[1761296304339,36.6,193.0,192.98,20.71295656]
[1761296304749,35.94,193.0,192.98,20.71295656]
[1761296304934,36.6,193.0,192.98,20.71295656]
[1761296305416,0.66,192.99,192.98,20.71295656]
[1761296305617,35.94,192.99,192.98,20.71295656]
[1761296306930,0.66,193.01,192.98,20.71295656]
[1761296307132,35.94,193.0,192.98,20.71295656]
[1761296307319,35.94,192.99,192.98,20.71295656]
[1761296307845,0.66,192.99,192.98,20.71295656]
[1761296308137,36.6,192.99,192.98,20.71295656]
[1761296308339,0.66,192.99,192.98,20.71295656]
[1761296308641,36.6,192.99,192.98,20.71295656]
[1761296308941,36.6,192.99,192.98,5.18188413]
[1761296309315,0.66,192.99,192.98,5.18188413]
[1761296309513,36.6,192.99,192.98,5.18188413]
[1761296309713,0.66,192.99,192.98,5.18188413]
[1761296310135,36.6,192.99,192.98,5.18188413]
[1761296310526,36.6,192.99,192.97,5.18215266]
[1761296310935,35.94,192.98,192.97,5.18215266]
[1761296311115,35.94,192.98,192.97,7.75851476]
[1761296311317,36.61,192.98,192.97,5.18215266]
[1761296312256,36.61,192.98,192.96,5.18242122]
[1761296312540,0.67,192.97,192.96,5.18242122]
[1761296314944,0.17,192.97,192.96,5.18242122]
[1761296315748,36.11,192.97,192.96,5.18242122]
[1761296316350,0.17,192.97,192.96,5.18242122]
[1761296316654,36.11,192.97,192.96,5.18242122]
[1761296318343,0.17,192.97,192.96,5.18242122]
[1761296318527,36.11,192.97,192.96,5.18242122]
[1761296319129,0.17,192.97,192.96,5.18242122]
[1761296319331,36.11,192.97,192.96,5.18242122]
[1761296322347,0.17,192.97,192.96,5.18242122]
[1761296322550,36.11,192.97,192.96,5.18242122]
[1761296324950,36.65,192.97,192.96,5.18242122]
[1761296326355,35.94,192.97,192.96,7.75878332]
[1761296326558,36.65,192.97,192.96,5.18242122]
[1761296327149,0.71,192.97,192.96,5.18242122]
[1761296327349,36.65,192.97,192.96,5.18242122]
[1761296330346,0.71,192.97,192.96,5.18242122]
[1761296330552,36.65,192.97,192.96,5.18242122]
[1761296331171,0.71,192.97,192.96,5.18242122]
[1761296331353,36.65,192.97,192.96,5.18242122]
[1761296331552,36.15,192.97,192.96,5.18242122]
[1761296333945,38.43330896,193.02,192.96,6.83207566]
[1761296334147,0.71,193.02,192.98,51.64965444]
[1761296334346,35.94,193.01,192.99,1.64965444]
[1761296334553,35.94,193.0,192.96,68.13847428]
[1761296334856,35.94,192.99,192.96,68.79847428]
[1761296335269,36.65,192.98,192.96,68.13847428]
[1761296335457,0.71,192.99,192.96,68.13847428]
[1761296335654,35.94,192.98,192.96,68.13847428]
[1761296335860,0.71,192.99,192.96,68.13847428]
[1761296336060,35.94,192.98,192.96,68.13847428]
[1761296338857,36.65,192.98,192.96,18.13847428]
[1761296339070,35.94,192.97,192.96,18.13847428]
[1761296343379,0.71,193.01,192.96,20.44812872]
[1761296343571,35.94,193.0,192.97,0.66]
[1761296343775,35.94,193.0,192.96,19.78812872]
[1761296343952,35.94,193.0,192.96,18.13847428]
[1761296344157,0.71,192.99,192.96,18.13847428]
[1761296345358,0.71,193.0,192.96,68.79847428]
[1761296345557,35.94,192.99,192.96,68.79847428]
[1761296347257,35.94,192.99,192.98,1.64965444]
[1761296347463,0.71,193.02,192.98,1.64965444]
[1761296347884,0.71,193.06,193.01,1.64965444]
[1761296348179,0.71,193.06,193.02,1.64965444]
[1761296348395,0.71,193.08,193.04,1.64965444]
[1761296348675,35.94,193.07,193.05,1.64965444]
[1761296348871,35.94,193.07,193.05,2.30965444]
[1761296349290,0.71,193.09,193.06,5.17973686]
[1761296349462,35.94,193.08,193.06,5.17973686]
[1761296349789,35.94,193.07,193.05,5.17999631]
[1761296349980,1.64965444,193.07,193.04,5.18023904]
[1761296350289,0.71,193.06,193.03,55.18047765]
[1761296350458,1.64965444,193.04,193.01,5.18081631]
[1761296350656,0.71,193.06,193.01,5.18081631]
[1761296350657,35.94,193.03,193.01,5.18081631]
[1761296350886,35.94,193.02,193.01,5.18081631]
[1761296351062,1.64965444,193.04,193.01,5.18081631]
[1761296351256,36.6,193.03,193.0,18.13410688]
[1761296351767,0.66,193.02,193.0,18.13410688]
[1761296351980,2.30965444,193.02,193.0,5.18134715]
[1761296352178,35.94,193.01,193.0,5.18134715]
[1761296352390,36.6,193.01,193.0,5.18134715]
[1761296353689,36.6,193.01,192.97,64.60442021]
[1761296353964,0.66,193.0,192.98,5.18188413]
[1761296356083,35.94,193.0,192.98,5.18188413]
[1761296356396,35.94,193.0,192.99,2.35965444]
[1761296356993,35.94,193.0,192.99,1.64965444]
[1761296357179,35.94,193.01,192.99,1.64965444]
[1761296357378,35.94,193.01,193.0,5.18134715]
[1761296357608,36.6,193.01,192.97,50.0]
[1761296357890,38.24965444,193.0,192.96,5.18222756]
[1761296358096,0.66,192.99,192.96,5.18222756]
[1761296358480,35.94,192.98,192.96,5.18222756]
[1761296358797,35.94,192.97,192.96,5.18222756]
[1761296359189,0.66,192.98,192.96,5.18222756]
[1761296359698,35.94,192.97,192.96,5.18222756]
[1761296359875,35.94,192.97,192.95,5.38266901]
[1761296360084,0.66,192.97,192.95,5.38266901]
[1761296360705,35.94,192.96,192.95,5.38266901]
[1761296362093,0.66,192.97,192.95,5.38266901]
[1761296362303,35.94,192.96,192.95,5.38266901]
[1761296363874,36.6,192.96,192.95,0.2]
[1761296364367,36.6,192.96,192.95,5.38268981]
[1761296364568,1.64965444,192.97,192.95,5.38268981]
[1761296364782,35.94,192.96,192.95,5.38268981]
[1761296366073,2.30965444,192.96,192.95,0.2]
[1761296366279,38.24965444,192.96,192.95,0.2]
[1761296366982,2.30965444,192.96,192.95,0.2]
[1761296367188,38.24965444,192.96,192.95,0.2]
[1761296367602,2.30965444,192.96,192.95,0.2]
[1761296367775,38.24965444,192.96,192.95,0.2]
[1761296368195,2.30965444,192.96,192.95,0.2]
[1761296368675,38.24965444,192.96,192.95,0.2]
[1761296370613,2.30965444,192.96,192.95,0.2]
[1761296370786,38.24965444,192.96,192.95,0.2]
[1761296371202,2.30965444,192.96,192.95,0.2]
[1761296371403,38.24965444,192.96,192.95,0.2]
[1761296372683,36.6,192.96,192.95,0.2]
[1761296372897,38.24965444,192.96,192.95,0.2]
[1761296373281,2.30965444,192.96,192.95,0.2]
[1761296373482,38.24965444,192.96,192.95,0.2]
[1761296374512,2.30965444,192.96,192.95,0.2]
[1761296374688,38.24965444,192.96,192.95,0.2]
[1761296377512,2.30965444,192.96,192.95,0.2]
[1761296377822,38.24965444,192.96,192.95,0.2]
[1761296378719,2.30965444,192.96,192.95,0.2]
[1761296378924,38.24965444,192.96,192.95,0.2]
[1761296380215,2.30965444,192.96,192.95,0.2]
[1761296380413,38.24965444,192.96,192.95,0.2]
[1761296382020,2.30965444,192.96,192.95,0.2]
[1761296382200,38.24965444,192.96,192.95,0.2]
[1761296382596,2.30965444,192.96,192.95,0.2]
[1761296383114,38.24965444,192.96,192.95,0.2]
[1761296384720,36.6,192.96,192.95,0.2]
[1761296384917,37.58965444,192.96,192.95,0.2]
[1761296385107,35.94,192.96,192.95,0.2]
[1761296385309,2.29965444,192.97,192.95,0.2]
[1761296385516,35.94,192.96,192.95,0.2]
[1761296387712,7.4825636,192.98,192.95,0.2]
[1761296387902,35.94,192.96,192.95,0.2]
[1761296388918,0.65,192.97,192.95,5.38268981]
[1761296389223,35.94,192.96,192.95,5.38268981]
[1761296389527,35.94,192.96,192.95,6.10268981]
[1761296390022,35.94,192.96,192.95,5.38268981]
[1761296390413,35.94,192.96,192.95,6.10268981]
[1761296391118,35.94,192.96,192.95,5.38268981]
[1761296392518,2.57780448,192.98,192.95,6.10268981]
[1761296392727,35.94,192.96,192.95,5.38268981]
[1761296393906,35.94,192.96,192.95,6.10268981]
[1761296394104,35.94,192.96,192.95,5.38268981]
[1761296394306,0.65,192.98,192.95,5.38268981]
[1761296394501,35.94,192.97,192.95,5.38268981]
[1761296394698,35.94,192.96,192.95,6.10268981]
[1761296395105,25.45780448,192.99,192.95,6.10268981]
[1761296395302,35.94,192.98,192.95,6.10268981]
[1761296396120,35.94,192.97,192.95,6.10268981]
[1761296396707,35.94,192.96,192.95,6.10268981]
[1761296396904,0.65,192.98,192.95,6.10268981]
[1761296397104,35.94,192.97,192.95,6.10268981]
[1761296397525,0.65,192.98,192.95,6.10268981]
[1761296397715,35.94,192.97,192.95,6.10268981]
[1761296398133,0.65,192.98,192.95,6.10268981]
[1761296398433,35.94,192.97,192.96,0.72]
[1761296398608,5.18112514,193.01,192.96,3.29780448]
[1761296398609,2.57780448,193.01,192.96,3.29780448]
[1761296398806,36.59,193.0,192.96,3.29780448]
[1761296399008,2.57780448,192.98,192.95,18.33941435]
[1761296399207,35.94,192.97,192.95,18.33941435]
[1761296399627,35.94,192.96,192.95,18.33941435]
[1761296400131,3.22780448,192.98,192.95,18.33941435]
[1761296400325,39.16780448,192.97,192.95,18.33941435]
[1761296401629,38.51780448,192.97,192.95,18.33941435]
[1761296401846,35.94,192.97,192.95,18.33941435]
[1761296402013,35.94,192.97,192.95,19.05941435]
[1761296402625,35.94,192.97,192.95,18.33941435]
[1761296402835,3.22780448,192.96,192.95,0.2]
[1761296403140,18.78595306,192.96,192.95,0.2]
[1761296403818,22.66509904,192.96,192.95,0.2]
[1761296404736,22.66498348,192.96,192.95,0.2]
[1761296406542,7.1068349,192.96,192.95,0.2]
[1761296406712,12.290221,192.96,192.95,0.2]
[1761296407734,9.71241652,192.96,192.95,0.2]
[1761296407936,12.290221,192.96,192.95,0.2]
[1761296408432,9.71241652,192.96,192.95,0.2]
[1761296408734,12.290221,192.96,192.95,0.2]